bitfinex-derivatives/quotes_ETHF0:USTF0_20251003
["timestamp","ask_amount","ask_price","bid_price","bid_amount"]
[1759452709485,0.5465,4475.0,4474.9,1.37632]
[1759452710484,3.83308,4475.3,4475.2,0.40189]
[1759452710792,4.32084345,4475.3,4475.2,1.37629]
[1759452711091,4.86184345,4475.3,4475.2,1.37629]
[1759452711287,4.64394345,4475.3,4475.2,1.37629]
[1759452711786,4.86184345,4475.3,4475.2,1.05089]
[1759452712590,4.86184345,4475.3,4475.2,0.649]
[1759452712996,4.86184345,4475.3,4475.2,0.435]
[1759452713996,4.86184345,4475.3,4475.2,0.83689]
[1759452714197,4.86184345,4475.3,4475.2,0.435]
[1759452714895,4.37408,4475.3,4475.2,0.435]
[1759452715093,3.9722,4475.3,4474.6,3.2078]
[1759452715285,3.9722,4475.3,4474.3,0.61296]
[1759452715286,0.4413,4474.4,4474.3,0.61296]
[1759452715491,0.7644,4474.4,4474.3,0.83696]
[1759452715998,0.7644,4474.4,4474.3,1.05096]
[1759452716298,1.16636,4474.4,4474.3,1.05096]
[1759452716498,1.16636,4474.4,4474.3,0.83696]
[1759452717894,1.16636,4474.4,4474.3,0.211]
[1759452718198,0.7644,4474.1,4474.0,1.1524]
[1759452718398,0.7644,4474.1,4474.0,2.98299733]
[1759452718399,0.5465,4474.1,4474.0,2.98299733]
[1759452718599,0.5465,4474.1,4474.0,1.3764]
[1759452719601,4.15623,4474.8,4474.7,0.7504]
[1759452719901,4.37413,4474.8,4474.7,0.9744]
[1759452720099,4.37413,4474.8,4474.7,0.649]
[1759452720898,4.37413,4474.8,4474.7,0.224]
[1759452724598,4.37413,4474.8,4474.7,0.9687]
[1759452725195,4.37413,4474.8,4474.7,0.6437]
[1759452725600,4.37413,4474.8,4474.7,1.37064]
[1759452725805,3.2078,4474.8,4474.7,1.37064]
[1759452726007,3.60973,4474.8,4474.7,1.37064]
[1759452726209,4.11603,4474.8,4474.7,1.37064]
[1759452726403,4.11603,4474.8,4474.7,0.9687]
[1759452726608,4.31803,4474.8,4474.7,0.9687]
[1759452726810,3.7127,4474.8,4474.4,0.2053]
[1759452726997,1.11028,4474.2,4474.1,1.81189733]
[1759452727306,1.11029,4474.1,4474.0,1.60659733]
[1759452727502,1.11029,4474.1,4474.0,0.224]
[1759452728405,0.7083,4474.1,4474.0,1.1467]
[1759452728605,0.7083,4474.1,4474.0,1.3707]
[1759452728811,1.11029,4474.1,4474.0,1.3707]
[1759452729109,1.11029,4474.1,4474.0,1.0457]
[1759452729704,0.7083,4474.1,4474.0,1.0457]
[1759452729907,0.5063,4474.1,4474.0,1.3707]
[1759452732509,0.40194,4474.7,4474.1,1.32997]
[1759452732713,0.2034,4474.6,4474.5,1.14665]
[1759452732910,0.2034,4474.6,4474.5,1.37065]
[1759452733114,0.3029,4474.6,4474.5,1.37065]
[1759452735007,3.2078,4475.3,4474.9,0.40192]
[1759452735215,0.839,4475.0,4474.9,1.04562]
[1759452735407,1.24091,4475.0,4474.9,1.04562]
[1759452736110,1.24091,4475.0,4474.9,0.4293]
[1759452737112,1.24091,4475.0,4474.9,0.83122]
[1759452737416,0.5063,4475.0,4474.9,1.37062]
[1759452737612,0.40187,4475.4,4475.3,0.40188]
[1759452737821,0.4054,4475.4,4475.3,0.224]
[1759452738114,0.4054,4475.4,4475.3,1.04558]
[1759452738411,0.5063,4475.4,4475.3,0.9687]
[1759452738612,0.7083,4475.4,4475.3,1.37058]
[1759452738811,0.7083,4475.4,4475.3,1.04558]
[1759452739209,0.3029,4475.4,4475.3,1.37058]
[1759452739515,3.4112,4475.8,4475.7,1.14655]
[1759452739713,3.2078,4475.8,4475.7,1.37055]
[1759452739910,3.5107,4475.8,4475.7,1.37055]
[1759452740107,3.5107,4475.8,4475.7,0.224]
[1759452740108,3.9161,4475.8,4475.7,0.224]
[1759452741018,3.9161,4475.8,4475.7,0.4293]
[1759452741213,3.9161,4475.8,4475.7,0.83115]
[1759452742220,3.9161,4475.8,4475.7,1.37055]
[1759452742415,0.1301,4475.5,4475.1,1.60659733]
[1759452742622,0.7083,4475.2,4475.1,0.6072]
[1759452742918,0.3029,4475.5,4475.4,1.14657]
[1759452743117,0.5063,4475.5,4475.4,1.14657]
[1759452746215,0.8566,4475.5,4475.4,0.223]
[1759452751225,1.25846,4475.5,4475.4,0.223]
[1759452752524,1.25846,4475.5,4475.4,0.4365]
[1759452753624,1.25846,4475.5,4475.4,0.223]
[1759452754633,1.25846,4475.5,4475.4,0.62487]
[1759452754930,1.25846,4475.5,4475.4,0.223]
[1759452759033,1.30846,4475.5,4475.4,0.62487]
[1759452759236,1.30846,4475.5,4475.4,0.223]
[1759452762633,4.51626,4475.5,4475.4,0.223]
[1759452764352,5.00323922,4475.5,4475.4,0.223]
[1759452765752,0.7498,4474.7,4474.6,34.857]
[1759452765953,1.15174,4474.7,4474.6,35.48194]
[1759452766151,1.20174,4474.7,4474.6,35.48194]
[1759452766752,1.20174,4474.7,4474.6,0.62494]
[1759452767457,1.20174,4474.7,4474.6,0.223]
[1759452770751,0.40198,4474.2,4474.1,0.40199]
[1759452770958,1.15178,4474.2,4474.1,0.40199]
[1759452771159,1.20178,4474.2,4474.1,0.40199]
[1759452773551,1.20178,4474.2,4474.1,0.61549]
[1759452773957,0.7998,4474.2,4474.1,1.15329]
[1759452774455,1.20178,4474.2,4474.1,1.15329]
[1759452775561,1.20178,4474.2,4474.1,0.7513]
[1759452775762,1.20178,4474.2,4474.1,1.15329]
[1759452775963,0.7998,4474.2,4474.1,1.15329]
[1759452776162,0.05,4474.2,4474.1,1.15329]
[1759452777058,0.3751,4474.2,4474.1,1.15329]
[1759452778766,0.582,4474.2,4474.1,1.15329]
[1759452779265,1.20178,4474.2,4474.1,1.15329]
[1759452780465,1.20178,4474.2,4474.1,0.81839]
[1759452782467,1.20178,4474.2,4474.1,0.2135]
[1759452782765,1.20178,4474.2,4474.1,0.2128]
[1759452782965,1.20178,4474.2,4474.1,0.7549]
[1759452784363,1.20178,4474.2,4474.1,1.15689]
[1759452784767,0.7998,4474.2,4474.1,1.15689]
[1759452785372,1.20178,4474.2,4474.1,1.15689]
[1759452785766,0.7998,4474.2,4474.1,1.15689]
[1759452787267,1.20178,4474.2,4474.1,0.7549]
[1759452787462,1.20178,4474.2,4474.1,0.4267]
[1759452788176,0.83009,4474.1,4474.0,0.223]
[1759452788377,1.15829,4474.1,4474.0,0.223]
[1759452788877,1.15829,4474.1,4474.0,0.625]
[1759452788878,0.7563,4474.1,4474.0,0.625]
[1759452789179,0.8063,4474.1,4474.0,0.625]
[1759452789873,1.20829,4474.1,4474.0,0.625]
[1759452790073,1.20829,4474.1,4474.0,0.223]
[1759452790566,1.20829,4474.1,4474.0,0.8378]
[1759452791677,0.8063,4474.1,4474.0,0.8378]
[1759452791878,1.20829,4474.1,4474.0,0.8378]
[1759452792680,1.20829,4474.1,4474.0,0.4358]
[1759452794475,1.20829,4474.1,4474.0,0.224]
[1759452794883,1.20829,4474.1,4474.0,0.626]
[1759452795683,1.20829,4474.1,4474.0,0.62765602]
[1759452802790,1.20829,4474.1,4474.0,0.22565602]
[1759452803484,1.20829,4474.1,4474.0,0.62765602]
[1759452803685,1.20829,4474.1,4474.0,0.22565602]
[1759452807594,1.20829,4474.1,4474.0,0.62765602]
[1759452809197,1.20829,4474.1,4474.0,0.22565602]
[1759452810391,1.20829,4474.1,4474.0,0.62765602]
[1759452810794,0.8063,4474.1,4474.0,0.62765602]
[1759452811196,1.20829,4474.1,4474.0,0.62765602]
[1759452811496,1.20829,4474.1,4474.0,0.22565602]
[1759452812196,1.20829,4474.1,4474.0,0.62765602]
[1759452812385,1.20829,4474.1,4474.0,0.22565602]
[1759452812797,1.20829,4474.1,4474.0,0.62765602]
[1759452814298,1.20829,4474.1,4474.0,0.22565602]
[1759452815298,1.20829,4474.1,4474.0,0.62765602]
[1759452816398,1.20829,4474.1,4474.0,0.22565602]
[1759452817298,0.40206,4473.3,4473.2,1.60831382]
[1759452817498,1.30279,4473.0,4472.9,3.2078]
[1759452817692,1.30279,4473.0,4472.9,3.4318]
[1759452817894,1.30279,4473.0,4472.9,0.224]
[1759452818301,1.35279,4473.0,4472.9,0.22684273]
[1759452819597,1.35279,4473.0,4472.9,0.62894273]
[1759452820300,1.35279,4473.0,4472.9,0.22684273]
[1759452823909,1.35279,4473.0,4472.9,0.62894273]
[1759452824210,0.7277,4473.0,4472.9,1.20604273]
[1759452824508,0.9507,4473.0,4472.9,1.06454273]
[1759452826908,0.9507,4473.0,4472.9,0.22684273]
[1759452827111,1.35279,4473.0,4472.9,0.00284273]
[1759452828709,0.2159,4471.9,4471.8,3.2078]
[1759452828906,0.7705,4471.9,4471.8,3.4318]
[1759452829210,1.22269,4471.9,4471.8,3.834]
[1759452829715,1.22466491,4471.9,4471.8,3.83556649]
[1759452830711,0.82247491,4471.9,4471.8,4.05666649]
[1759452831313,1.22466491,4471.9,4471.8,4.05666649]
[1759452831712,0.82247491,4471.9,4471.8,4.05666649]
[1759452834812,1.22466491,4471.9,4471.8,4.05666649]
[1759452836411,1.22466491,4471.9,4471.8,4.27116649]
[1759452836812,1.22466491,4471.9,4471.8,1.06336649]
[1759452837409,0.82247491,4471.9,4471.8,1.06336649]
[1759452837614,0.38357491,4471.9,4471.8,1.20486649]
[1759452839410,1.00166491,4471.9,4471.8,1.06336649]
[1759452839715,0.82247491,4471.9,4471.8,1.06336649]
[1759452839919,0.05197491,4471.9,4471.8,4.41266649]
[1759452840120,0.82247491,4471.9,4471.8,3.86896649]
[1759452840517,0.38357491,4471.9,4471.8,4.41266649]
[1759452840814,0.3316,4472.6,4472.5,0.5771]
[1759452841004,0.3316,4472.6,4472.5,0.8011]
[1759452841206,0.1302,4473.0,4472.5,0.8011]
[1759452841406,0.6777,4473.0,4472.9,0.4356]
[1759452841717,0.90323208,4473.0,4472.9,0.6596]
[1759452842018,1.30532208,4473.0,4472.9,0.6596]
[1759452844418,1.30532208,4473.0,4472.9,0.4451]
[1759452844619,1.30532208,4473.0,4472.9,0.224]
[1759452846122,1.30532208,4473.0,4472.9,0.4328]
[1759452851630,1.30532208,4473.0,4472.9,0.224]
[1759452852524,4.51312208,4473.0,4472.9,0.224]
[1759452858634,1.13167,4472.1,4472.0,1.60831382]
[1759452858832,1.13169,4471.9,4471.7,1.83231382]
[1759452859032,1.13169,4471.9,4471.7,0.224]
[1759452859335,1.13169,4471.9,4471.8,0.21036649]
[1759452859525,0.40217,4472.2,4471.9,0.40219]
[1759452859732,0.71237,4472.2,4472.1,0.5644]
[1759452860127,0.92067,4472.2,4472.1,0.5644]
[1759452860526,0.92067,4472.2,4472.1,0.4227]
[1759452861435,1.13167,4472.2,4472.1,0.4227]
[1759452862537,0.1235,4472.5,4471.9,3.2078]
[1759452862538,1.25518,4472.0,4471.9,3.2078]
[1759452862739,1.13169,4471.9,4471.8,0.00156649]
[1759452863636,1.13169,4471.9,4471.8,0.21036649]
[1759452864140,1.13169,4471.9,4471.8,0.00156649]
[1759452865638,0.1235,4472.5,4471.9,0.3168]
[1759452865834,0.40216,4472.3,4472.2,0.7319]
[1759452866140,0.40216,4472.3,4472.2,1.35806]
[1759452866342,0.40216,4472.3,4472.2,0.9559]
[1759452866541,0.60986,4472.3,4472.2,0.9559]
[1759452866941,0.82736,4472.3,4472.2,0.9559]
[1759452867941,1.13716,4472.3,4472.2,1.35806]
[1759452868140,1.13716,4472.3,4472.2,0.9559]
[1759452869546,0.5175,4472.3,4472.2,1.35806]
[1759452869738,0.3098,4472.8,4472.5,0.3168]
[1759452869943,3.4155,4472.9,4472.8,0.7319]
[1759452870242,3.633,4472.9,4472.8,0.7319]
[1759452870442,3.9428,4472.9,4472.8,0.4151]
[1759452871440,0.735,4472.9,4472.8,0.4151]
[1759452872843,0.735,4472.9,4472.8,0.2075]
[1759452874040,0.735,4472.9,4472.8,0.4247]
[1759452874246,1.1371,4472.9,4472.8,0.7487]
[1759452874549,1.1371,4472.9,4472.8,0.4247]
[1759452876047,1.1371,4472.9,4472.8,0.2075]
[1759452878147,0.40211,4472.7,4472.6,0.224]
[1759452878354,1.13781,4472.7,4472.6,0.4281]
[1759452878654,1.13781,4472.7,4472.6,0.224]
[1759452882253,0.7357,4472.7,4472.6,1.37142]
[1759452882457,0.5254,4472.7,4472.6,1.37142]
[1759452882859,0.3219,4472.7,4472.6,1.37142]
[1759452883252,0.92751,4472.7,4472.6,1.37142]
[1759452886060,1.13781,4472.7,4472.6,0.4281]
[1759452886260,1.13781,4472.7,4472.6,0.224]
[1759452888668,1.26953,4472.5,4472.4,3.2078]
[1759452888855,1.26953,4472.5,4472.4,3.6359]
[1759452889256,1.26953,4472.5,4472.4,3.8531]
[1759452889466,1.26953,4472.5,4472.4,4.1771]
[1759452891763,1.26953,4472.5,4472.4,3.6359]
[1759452893469,1.26953,4472.5,4472.4,3.4318]
[1759452894068,1.26953,4472.5,4472.4,3.6359]
[1759452895069,0.7357,4472.5,4472.4,4.57924]
[1759452895273,0.5254,4472.5,4472.4,4.57924]
[1759452895774,0.92753,4472.5,4472.4,6.18755382]
[1759452896074,1.26953,4472.5,4472.4,6.18755382]
[1759452896472,0.72403,4472.5,4472.4,6.18755382]
[1759452897476,0.92753,4472.5,4472.4,6.18755382]
[1759452898281,0.40213,4472.5,4472.4,6.18755382]
[1759452898485,0.3219,4472.8,4472.6,0.7453]
[1759452898486,0.40212,4472.7,4472.6,0.7453]
[1759452898680,1.13782,4472.7,4472.6,0.224]
[1759452899588,0.53383,4472.5,4472.4,1.60831382]
[1759452899882,1.26953,4472.5,4472.4,2.03641382]
[1759452900479,1.26953,4472.5,4472.4,1.83231382]
[1759452901083,1.26953,4472.5,4472.4,2.03641382]
[1759452901487,1.26953,4472.5,4472.4,2.36041382]
[1759452901787,1.26953,4472.5,4472.4,2.03641382]
[1759452901988,1.26953,4472.5,4472.4,2.57941382]
[1759452906495,1.26953,4472.5,4472.4,2.24521382]
[1759452906694,1.26953,4472.5,4472.4,2.57941382]
[1759452908483,1.26953,4472.5,4472.4,2.24521382]
[1759452909101,1.26953,4472.5,4472.4,0.6369]
[1759452910589,1.26953,4472.5,4472.4,0.4281]
[1759452913400,1.26953,4472.5,4472.4,0.224]
[1759452913793,1.26953,4472.5,4472.4,0.4344]
[1759452914501,1.26953,4472.5,4472.4,0.224]
[1759452914702,1.26953,4472.5,4472.4,0.4344]
[1759452915102,1.26953,4472.5,4472.4,0.224]
[1759452915299,6.26953,4472.5,4472.4,0.224]
[1759452915498,6.75964227,4472.5,4472.4,0.16462116]
[1759452915697,1.12679,4471.9,4471.8,0.00156649]
[1759452915901,1.12679,4471.9,4471.8,0.22556649]
[1759452916997,1.12679,4471.9,4471.8,0.97896649]
[1759452918001,1.12679,4471.9,4471.8,0.64476649]
[1759452918399,0.40217,4472.1,4471.9,0.3342]
[1759452918599,0.517,4472.0,4471.9,0.7534]
[1759452918905,1.25188,4472.0,4471.9,0.7534]
[1759452920197,0.81809,4471.9,4471.8,0.00156649]
[1759452920401,1.12679,4471.9,4471.8,0.22556649]
[1759452922906,1.12679,4471.9,4471.8,0.43596649]
[1759452923403,1.12679,4471.9,4471.8,0.22556649]
[1759452923706,1.12679,4471.9,4471.8,0.43596649]
[1759452926005,0.7246,4471.9,4471.8,0.98256649]
[1759452926206,1.12679,4471.9,4471.8,1.38476649]
[1759452932703,0.7246,4471.9,4471.8,1.38476649]
[1759452932905,0.517,4471.9,4471.8,1.38476649]
[1759452933707,0.91919,4471.9,4471.8,1.38476649]
[1759452933906,1.13169,4471.9,4471.8,1.38476649]
[1759452934903,0.7295,4471.9,4471.8,1.38476649]
[1759452935308,1.13169,4471.9,4471.8,1.38476649]
[1759452936404,1.13169,4471.9,4471.8,0.98256649]
[1759452937410,1.13169,4471.9,4471.8,0.64786649]
[1759452937612,1.13169,4471.9,4471.8,0.95506649]
[1759452938009,1.13169,4471.9,4471.8,0.22556649]
[1759452939008,1.13169,4471.9,4471.8,0.44586649]
[1759452939610,1.13169,4471.9,4471.8,0.75306649]
[1759452939806,1.13169,4471.9,4471.8,0.95796649]
[1759452940712,1.13169,4471.9,4471.8,0.65076649]
[1759452941514,1.13169,4471.9,4471.8,0.44586649]
[1759452941715,1.13169,4471.9,4471.8,0.22556649]
[1759452942914,1.13169,4471.9,4471.8,0.44586649]
[1759452943215,1.13169,4471.9,4471.8,0.22556649]
[1759452947019,1.13169,4471.9,4471.8,0.95796649]
[1759452949114,1.13169,4471.9,4471.8,0.44586649]
[1759452949717,1.13169,4471.9,4471.8,0.22556649]
[1759452950825,1.13169,4471.9,4471.8,0.44586649]
[1759452953922,1.13169,4471.9,4471.8,0.22556649]
[1759452973427,1.13169,4471.9,4471.8,0.43166649]
[1759452973928,1.13169,4471.9,4471.8,1.15236649]
[1759452974126,1.13169,4471.9,4471.8,1.37546649]
[1759452974328,0.517,4471.9,4471.8,1.37546649]
[1759452974528,0.91919,4471.9,4471.8,1.37546649]
[1759452975536,0.517,4471.9,4471.8,1.37546649]
[1759452975735,0.91919,4471.9,4471.8,1.37546649]
[1759452975935,1.12859,4471.9,4471.8,1.37546649]
[1759452976436,0.7264,4471.9,4471.8,1.37546649]
[1759452976636,1.12859,4471.9,4471.8,1.37546649]
[1759452978036,1.12859,4471.9,4471.8,0.97326649]
[1759452978238,1.12859,4471.9,4471.8,0.65476649]
[1759452978736,1.12859,4471.9,4471.8,1.05696649]
[1759452980139,1.12859,4471.9,4471.8,1.37546649]
[1759452980434,0.3087,4471.9,4471.8,1.37546649]
[1759452980635,0.5127,4471.9,4471.8,1.37546649]
[1759452981136,0.5092,4472.2,4472.1,1.14986]
[1759452981332,1.12076,4472.2,4472.1,0.6532]
[1759452982737,1.12076,4472.2,4472.1,1.05537]
[1759452983430,1.12076,4472.2,4472.1,1.37387]
[1759452983641,1.12076,4472.2,4472.1,1.05537]
[1759452983843,1.12076,4472.2,4472.1,0.6532]
[1759452984232,1.12076,4472.2,4472.1,1.05537]
[1759452984837,1.12076,4472.2,4472.1,0.6532]
[1759452985838,1.12076,4472.2,4472.1,0.224]
[1759452986542,1.12076,4472.2,4472.1,0.7434]
[1759452986739,1.12076,4472.2,4472.1,0.4402]
[1759452987342,1.12076,4472.2,4472.1,0.9519]
[1759452987539,0.91136,4472.2,4472.1,0.9519]
[1759452989441,0.5092,4472.2,4472.1,0.9519]
[1759452989635,0.3349,4472.4,4472.3,0.40214]
[1759452989841,0.3349,4472.4,4472.3,0.9519]
[1759452990246,0.5365,4472.4,4472.3,0.9519]
[1759452992248,0.5365,4472.4,4472.3,1.35405]
[1759452992447,0.5365,4472.4,4472.3,0.9519]
[1759452993646,0.3223,4472.6,4472.5,0.4359]
[1759452993843,0.40212,4472.7,4472.6,0.7665]
[1759452994045,0.40212,4472.7,4472.6,0.9905]
[1759452994244,1.16162,4472.7,4472.6,0.9905]
[1759452997750,0.40212,4472.7,4472.6,0.9905]
[1759452998350,0.72442,4472.7,4472.6,0.9905]
[1759452998849,0.93962,4472.7,4472.6,0.9905]
[1759452999655,1.16162,4472.7,4472.6,0.9905]
[1759453002062,0.72442,4472.7,4472.6,0.9905]
[1759453002257,0.40212,4472.7,4472.6,0.9905]
[1759453002461,0.72442,4472.7,4472.6,0.9905]
[1759453002662,0.93962,4472.7,4472.6,0.9905]
[1759453004364,0.93962,4472.7,4472.6,1.39262]
[1759453004564,0.93962,4472.7,4472.6,0.9905]
[1759453006265,1.16162,4472.7,4472.6,0.9905]
[1759453007365,1.16162,4472.7,4472.6,0.6599]
[1759453009563,1.16162,4472.7,4472.6,0.4436]
[1759453009867,0.7595,4472.7,4472.6,0.9905]
[1759453010664,0.7595,4472.7,4472.6,1.39262]
[1759453011160,0.7595,4472.7,4472.6,0.9905]
[1759453012165,1.16161,4472.7,4472.6,0.9905]
[1759453013666,1.16161,4472.7,4472.6,0.4436]
[1759453013871,1.16167,4472.1,4472.0,3.6437]
[1759453014167,1.16167,4472.1,4472.0,3.8677]
[1759453017166,1.16167,4472.1,4472.0,3.4318]
[1759453017370,0.72445,4472.3,4472.2,0.73276]
[1759453017676,0.3223,4472.3,4472.2,1.39266]
[1759453017972,0.93965,4472.3,4472.2,1.39266]
[1759453018569,0.93965,4472.3,4472.2,0.9905]
[1759453020474,0.93965,4472.3,4472.2,1.39266]
[1759453020876,0.40214,4472.5,4472.4,0.4359]
[1759453021075,0.93964,4472.5,4472.4,0.9905]
[1759453025269,1.27344,4472.5,4472.4,0.9905]
[1759453026171,1.27344,4472.5,4472.4,4.1983]
[1759453032176,1.27344,4472.5,4472.4,0.224]
[1759453032379,0.40216,4472.2,4472.1,1.60831382]
[1759453032680,1.27498,4472.0,4471.9,3.2078]
[1759453032881,1.27498,4472.0,4471.9,3.6474]
[1759453033277,1.27498,4472.0,4471.9,4.38349]
[1759453033472,1.27498,4472.0,4471.9,4.59149]
[1759453034086,0.8728,4472.0,4471.9,4.59149]
[1759453034482,1.27498,4472.0,4471.9,4.59149]
[1759453036277,1.27498,4472.0,4471.9,6.19767585]
[1759453036683,1.15138,4472.0,4471.9,6.19767585]
[1759453039385,0.539,4472.0,4471.9,6.19767585]
[1759453039688,0.82371,4472.8,4472.7,0.4236]
[1759453039882,1.15131,4472.8,4472.7,0.9815]
[1759453041388,1.15131,4472.8,4472.7,0.4396]
[1759453041588,1.15131,4472.8,4472.7,0.224]
[1759453043284,0.7492,4472.8,4472.4,3.2078]
[1759453043484,1.27493,4472.5,4472.4,3.2078]
[1759453043686,1.27493,4472.5,4472.4,3.4318]
[1759453043887,1.27493,4472.5,4472.4,3.6474]
[1759453044789,1.15133,4472.5,4472.4,4.59344]
[1759453044988,1.27943,4472.5,4472.4,4.59344]
[1759453045586,0.4308,4472.1,4471.9,1.60571273]
[1759453045786,1.13345,4472.5,4471.8,0.00156649]
[1759453045787,1.16179,4471.9,4471.8,0.00156649]
[1759453045985,1.16179,4471.9,4471.8,0.22556649]
[1759453047186,0.7596,4471.9,4471.8,1.39266649]
[1759453047386,1.16179,4471.9,4471.8,1.39266649]
[1759453048497,1.16179,4471.9,4471.8,0.99046649]
[1759453049592,0.5452,4471.9,4471.8,1.39266649]
[1759453049796,0.73095,4472.3,4472.2,0.7649]
[1759453049996,1.16175,4472.3,4472.2,0.9889]
[1759453051197,1.16175,4472.3,4472.2,0.6551]
[1759453051387,1.16175,4472.3,4472.2,0.224]
[1759453063403,1.14219,4471.9,4471.8,0.00156649]
[1759453064411,1.63444002,4471.9,4471.8,0.00156649]
[1759453064909,6.63444002,4471.9,4471.8,0.00156649]
[1759453070117,1.14229,4470.7,4470.6,1.33677236]
[1759453070317,1.14229,4470.7,4470.6,1.56077236]
[1759453070911,1.14229,4470.7,4470.6,1.5628484]
[1759453071110,1.14229,4470.7,4470.6,0.98547604]
[1759453072514,1.14229,4470.7,4470.6,0.65457604]
[1759453073321,1.14229,4470.7,4470.6,0.98547604]
[1759453074820,0.74,4470.7,4470.6,1.38777604]
[1759453075016,0.40229,4470.8,4470.6,1.38777604]
[1759453075212,0.5253,4471.0,4470.9,0.4285]
[1759453075421,0.5253,4471.0,4470.9,0.9834]
[1759453075619,0.8618,4471.0,4470.9,0.9834]
[1759453076124,1.26407,4471.0,4470.9,0.9834]
[1759453082127,1.14227,4471.0,4470.9,0.9834]
[1759453082830,0.92757,4471.0,4470.9,1.38568]
[1759453083030,0.40227,4471.0,4470.9,4.59348]
[1759453083829,0.40226,4471.2,4471.1,1.13756]
[1759453084826,0.72706,4471.2,4471.1,0.7353]
[1759453085026,0.94116,4471.2,4471.1,0.7353]
[1759453085632,0.40226,4471.2,4471.1,1.13756]
[1759453085828,0.40223,4471.5,4471.4,1.13753]
[1759453086028,0.40223,4471.5,4471.4,1.36153]
[1759453086235,0.94113,4471.5,4471.4,1.36153]
[1759453089734,3.2078,4471.9,4471.4,1.36153]
[1759453090037,0.3248,4472.2,4471.9,1.13749]
[1759453090229,0.7573,4472.2,4472.1,0.7353]
[1759453090437,1.15946,4472.2,4472.1,0.2091]
[1759453092843,1.15946,4472.2,4472.1,0.7353]
[1759453096647,0.94106,4472.2,4472.1,0.7353]
[1759453096851,0.5389,4472.2,4472.1,0.7353]
[1759453097144,0.3248,4472.2,4472.1,0.7353]
[1759453097344,0.5389,4472.2,4472.1,0.7353]
[1759453100249,0.7573,4472.2,4472.1,0.7353]
[1759453100640,3.34333208,4473.0,4472.2,0.312]
[1759453100641,0.40213,4472.6,4472.2,0.312]
[1759453100849,0.94103,4472.6,4472.5,0.7353]
[1759453101049,1.15943,4472.6,4472.5,0.4233]
[1759453101249,1.15943,4472.6,4472.5,0.4331]
[1759453101846,1.15943,4472.6,4472.5,0.7451]
[1759453102243,1.15943,4472.6,4472.5,0.4331]
[1759453108255,1.15943,4472.6,4472.5,0.83523]
[1759453108460,1.15943,4472.6,4472.5,1.16953]
[1759453108662,1.15943,4472.6,4472.5,0.7674]
[1759453110360,1.15943,4472.6,4472.5,0.4331]
[1759453114058,1.15943,4472.6,4472.5,0.7523]
[1759453114863,1.15943,4472.6,4472.5,1.37563]
[1759453121157,1.15943,4472.6,4472.5,0.9735]
[1759453121362,1.15943,4472.6,4472.5,0.224]
[1759453121663,0.4325,4472.6,4472.0,1.60571273]
[1759453121866,1.28458,4472.0,4471.9,1.60571273]
[1759453122166,1.28462,4471.5,4471.4,5.03231273]
[1759453122362,1.28462,4471.5,4471.4,5.97774273]
[1759453123168,1.28462,4471.5,4471.4,4.37203]
[1759453125562,1.28462,4471.5,4471.4,4.59323]
[1759453125867,0.7491,4471.5,4471.4,4.59323]
[1759453126068,1.15132,4471.5,4471.4,4.59323]
[1759453126771,0.5453,4471.5,4471.4,4.59323]
[1759453126972,0.7324,4471.8,4471.7,0.7592]
[1759453127271,0.9475,4471.8,4471.7,0.9832]
[1759453127672,1.1513,4471.8,4471.7,0.9832]
[1759453127868,1.1513,4471.8,4471.7,0.224]
[1759453129871,0.75067,4471.0,4470.9,2.76719273]
[1759453130072,1.28467,4471.0,4470.9,0.664]
[1759453130865,1.28467,4471.0,4470.9,0.4428]
[1759453131975,1.28467,4471.0,4470.9,0.224]
[1759453142777,0.8824,4471.0,4470.9,1.37498]
[1759453142983,0.3302,4471.0,4470.9,1.37498]
[1759453143183,1.29487,4471.0,4470.9,0.224]
[1759453149693,1.16529,4470.7,4470.6,0.00207604]
[1759453149888,1.16529,4470.7,4470.6,0.62837604]
[1759453150994,1.16529,4470.7,4470.6,0.85077604]
[1759453152001,1.16529,4470.7,4470.6,0.62837604]
[1759453152296,0.40236,4470.0,4469.9,4.81351273]
[1759453152502,0.763,4469.7,4469.6,0.2224]
[1759453152800,0.763,4469.7,4469.6,1.15239]
[1759453152995,0.763,4469.7,4469.6,1.37509]
[1759453153294,0.763,4469.7,4469.6,1.37743483]
[1759453153295,0.76588232,4469.7,4469.6,1.37743483]
[1759453155402,0.33098232,4469.7,4469.6,1.37743483]
[1759453157703,0.55328232,4469.7,4469.6,1.37743483]
[1759453159500,1.16826232,4469.7,4469.6,1.37743483]
[1759453161006,0.00288232,4469.7,4469.6,1.37743483]
[1759453167812,0.31698232,4469.7,4469.6,1.37743483]
[1759453170421,0.00288232,4469.7,4469.6,1.37743483]
[1759453173324,0.00288232,4469.7,4469.6,2.98314756]
[1759453173522,0.00288232,4469.7,4469.6,6.37743483]
[1759453174421,0.00288232,4469.7,4469.6,47.17743483]
[1759453176327,0.00288232,4469.7,4469.6,50.38523483]
[1759453179729,0.71912,4470.4,4470.3,1.13383]
[1759453180030,0.71912,4470.4,4470.3,0.9555]
[1759453180031,0.94032,4470.4,4470.3,0.9555]
[1759453180726,0.94211267,4470.4,4470.3,0.9555]
[1759453184235,0.31859267,4470.4,4470.3,1.35783]
[1759453184431,0.94211267,4470.4,4470.3,0.9555]
[1759453185532,1.15531267,4470.4,4470.3,0.9555]
[1759453186937,1.15531267,4470.4,4470.3,0.6333]
[1759453187136,1.15531267,4470.4,4470.3,0.9555]
[1759453191441,0.94211267,4470.4,4470.3,1.35783]
[1759453192240,0.94211267,4470.4,4470.3,0.9555]
[1759453193042,1.15531267,4470.4,4470.3,0.9555]